bitfinex/quotes_BTCUSD_20250303
["timestamp","ask_amount","ask_price","bid_price","bid_amount"]
[1741025381704,0.00194322,90073.0,90058.0,0.5403]
[1741025382114,0.37702141,90070.0,90058.0,0.5403]
[1741025382373,0.37702141,90070.0,90021.0,1.182]
[1741025382374,0.1,90067.0,90050.0,0.5133]
[1741025382526,0.31454085,90059.0,90024.0,0.735461]
[1741025382725,0.00194383,90058.0,90025.0,0.5133]
[1741025382984,0.00194383,90058.0,90026.0,0.5133]
[1741025382985,0.37702141,90040.0,90026.0,0.5133]
[1741025383139,0.30194394,90039.0,90003.0,0.5403]
[1741025383343,0.37702141,90030.0,90004.0,0.5403]
[1741025383566,0.00194421,90029.0,90004.0,0.5403]
[1741025383773,0.37702141,90020.0,90004.0,0.5403]
[1741025383952,0.00194439,90019.0,90005.0,0.5403]
[1741025384165,0.11008,90032.0,90014.0,0.222187]
[1741025384367,0.00194411,90031.0,90011.0,0.222193]
[1741025384569,0.00194411,90031.0,90005.0,0.5403]
[1741025384769,0.00194411,90031.0,90006.0,0.5403]
[1741025384770,0.37702141,90020.0,90006.0,0.5403]
[1741025384970,0.00194439,90019.0,90006.0,0.5403]
[1741025385177,0.00194439,90019.0,90007.0,0.3215]
[1741025386114,0.37702141,90020.0,90007.0,0.3215]
[1741025386752,0.3,90019.0,90007.0,0.3215]
[1741025386935,0.01454085,90018.0,90007.0,0.3215]
[1741025387111,0.01454085,90016.0,90007.0,0.3215]
[1741025387318,0.01454085,90014.0,90007.0,0.2945]
[1741025387525,0.4,90019.0,90007.0,0.2945]
[1741025387526,0.3,90019.0,90007.0,0.2945]
[1741025387862,0.109,90018.0,90007.0,0.2945]
[1741025388200,0.3,90017.0,90007.0,0.2945]
[1741025390045,0.00194438,90016.0,90007.0,0.2945]
[1741025390635,0.31454085,90011.0,89995.0,0.2945]
[1741025390821,0.3,90003.0,89995.0,0.2945]
[1741025390974,0.3,90001.0,89995.0,0.2945]
[1741025391415,0.00194478,90000.0,89995.0,0.2945]
[1741025391930,0.1,89987.0,89973.0,0.2945]
[1741025392209,0.12258085,89999.0,89947.0,0.2945]
[1741025392210,0.01454085,89978.0,89947.0,0.2945]
[1741025392424,0.37702141,89960.0,89947.0,0.80791891]
[1741025392629,0.10788,89959.0,89947.0,0.26761891]
[1741025393073,0.10788,89959.0,89950.0,0.222343]
[1741025393247,0.10788,89959.0,89948.0,0.32235]
[1741025393459,0.37702141,89990.0,89965.0,0.1]
[1741025393667,0.37702141,89990.0,89968.0,0.222301]
[1741025393844,0.3,89988.0,89971.0,0.222292]
[1741025394215,0.37702141,90000.0,89977.0,0.1]
[1741025394341,0.26804,90005.0,89977.0,0.1]
[1741025394551,0.00194479,89999.0,89977.0,0.322278]
[1741025394790,0.00194479,89999.0,89977.0,0.1]
[1741025394970,0.00194479,89999.0,89981.0,0.222266]
[1741025395191,0.00194479,89999.0,89972.0,0.8078]
[1741025395366,0.00194479,89999.0,89972.0,1.03009]
[1741025395566,0.00194479,89999.0,89972.0,1.03020891]
[1741025395771,0.00194479,89999.0,89973.0,0.5403]
[1741025396152,0.37702141,89990.0,89975.0,0.222282]
[1741025396352,0.37702141,90000.0,89974.0,0.222286]
[1741025396562,0.00194496,89999.0,89975.0,0.1]
[1741025396932,0.3,90004.0,89975.0,0.1]
[1741025397128,0.00194485,89999.0,89982.0,0.222265]
[1741025397323,0.00194484,90003.0,89979.0,0.222272]
[1741025397490,0.00194484,90003.0,89975.0,0.322283]
[1741025397700,0.00194484,90003.0,89977.0,0.222277]
[1741025397902,0.00194484,90003.0,89975.0,0.1]
[1741025398105,0.37702141,90020.0,89986.0,0.1]
[1741025398306,0.37702141,90020.0,89996.0,0.22223]
[1741025398307,0.10834448,90016.0,89996.0,0.22223]
[1741025398508,0.10834448,90016.0,89992.0,0.22224]
[1741025398729,0.3,90015.0,89993.0,0.8078]
[1741025398934,0.0019445,90014.0,89994.0,0.8078]
[1741025399135,0.10612,90013.0,89995.0,0.8078]
[1741025399357,0.53750141,90030.0,90009.0,0.222198]
[1741025399358,0.00194425,90029.0,90009.0,0.222198]
[1741025399540,0.00194425,90029.0,90010.0,0.8078]
[1741025400067,0.30194425,90029.0,90011.0,0.5403]
[1741025400264,0.3,90029.0,90011.0,0.5403]
[1741025400402,0.16048,90030.0,90011.0,0.5403]
[1741025400403,0.00228442,90017.0,90011.0,0.5403]
[1741025400598,0.00228462,90017.0,90011.0,0.54041891]
[1741025400802,0.01454085,90016.0,90011.0,0.54041891]
[1741025401010,0.01454085,90016.0,90011.0,0.00011891]
[1741025401011,0.01454085,90014.0,90011.0,0.00011891]
[1741025401222,0.11454085,90012.0,90011.0,0.00011891]
[1741025401440,0.14704619,90012.0,90011.0,0.00011891]
[1741025401642,0.03250534,90012.0,90011.0,0.00011891]
[1741025402043,0.10548,90012.0,90011.0,0.00011891]
[1741025402243,0.40548,90012.0,90011.0,0.00011891]
[1741025402501,0.3,90011.0,89986.0,0.09328901]
[1741025402709,0.37896603,90010.0,89987.0,0.8078]
[1741025402834,0.37702141,90010.0,89987.0,0.8078]
[1741025403033,0.0001188,90011.0,89993.0,0.09328901]
[1741025403232,0.0001188,90011.0,89990.0,0.09328901]
[1741025403433,0.0001188,90011.0,89987.0,0.8078]
[1741025403434,0.3,89999.0,89987.0,0.8078]
[1741025403637,0.00194475,89998.0,89987.0,0.2675]
[1741025404072,0.3,89999.0,89987.0,0.2675]
[1741025404279,0.3,89999.0,89987.0,0.489753]
[1741025404467,0.00194471,89998.0,89987.0,0.2675]
[1741025404962,0.001,89998.0,89987.0,0.2675]
[1741025405276,0.01164524,89997.0,89987.0,0.2675]
[1741025405686,0.001,89998.0,89987.0,0.2675]
[1741025406457,0.00194484,89997.0,89987.0,0.2675]
[1741025407059,0.3,89999.0,89987.0,0.2675]
[1741025407779,0.00194478,89998.0,89987.0,0.2675]
[1741025408306,0.1,89992.0,89979.0,0.2675]
[1741025408422,0.1,89982.0,89966.0,0.2675]
[1741025408625,0.3,89974.0,89966.0,0.2675]
[1741025408837,0.3,89972.0,89966.0,0.2675]
[1741025409156,0.03438597,89971.0,89966.0,0.2675]
[1741025409356,0.00671099,89969.0,89966.0,0.2675]
[1741025409557,0.00671099,89958.0,89946.0,0.0001701]
[1741025409757,0.01454085,89967.0,89946.0,0.0001701]
[1741025409758,0.41454085,89947.0,89946.0,0.0001701]
[1741025410039,0.4536924,89947.0,89946.0,0.0002891]
[1741025410957,0.4536924,89947.0,89916.0,0.0001697]
[1741025410958,0.3,89925.0,89916.0,0.0001697]
[1741025411158,0.01454085,89922.0,89916.0,0.0001697]
[1741025411336,0.00194663,89921.0,89916.0,0.0001697]
[1741025412295,0.0204541,89920.0,89916.0,0.0001697]
[1741025412530,0.00671099,89917.0,89916.0,0.0001697]
[1741025412728,0.42319875,89917.0,89916.0,0.0001697]
[1741025413021,0.453562,89917.0,89916.0,0.0001697]
[1741025413421,0.42125184,89917.0,89916.0,0.0031697]
[1741025413600,0.44170594,89917.0,89916.0,0.00356654]
[1741025413811,0.44170594,89917.0,89916.0,0.00056654]
[1741025414019,0.44170594,89917.0,89916.0,0.00356654]
[1741025414469,0.44170594,89917.0,89916.0,0.00056654]
[1741025414871,0.46982096,89917.0,89916.0,0.00156654]
[1741025415071,0.46982096,89917.0,89916.0,0.0006]
[1741025415711,0.48093158,89917.0,89916.0,0.0006]
[1741025416119,0.3,89912.0,89877.0,0.2675]
[1741025416320,0.56731099,89912.0,89877.0,0.2675]
[1741025416986,0.4606,89912.0,89895.0,0.2675]
[1741025417208,0.69196509,89912.0,89895.0,0.2675]
[1741025417488,0.31454085,89904.0,89895.0,0.2410697]
[1741025417693,0.31454085,89904.0,89876.0,0.5404697]
[1741025417694,0.01454085,89902.0,89877.0,0.2410697]
[1741025417893,0.01454085,89900.0,89877.0,0.2410697]
[1741025418099,0.01454085,89898.0,89877.0,0.2410697]
[1741025418305,0.0019472,89897.0,89877.0,0.2410697]
[1741025419373,0.0019472,89897.0,89877.0,0.4635937]
[1741025419528,0.522481,89895.0,89877.0,0.2410697]
[1741025420387,0.522481,89895.0,89894.0,0.0031697]
[1741025420971,0.522481,89895.0,89894.0,0.0001697]
[1741025421232,0.53513473,89895.0,89894.0,0.0001697]
[1741025421979,0.55558883,89895.0,89894.0,0.0001697]
[1741025422423,0.222523,89878.0,89877.0,0.2144091]
[1741025422640,0.222508,89885.0,89877.0,0.2144091]
[1741025422834,0.222503,89887.0,89877.0,0.2144091]
[1741025423274,0.0204541,89886.0,89885.0,0.222506]
[1741025423475,0.2429581,89886.0,89885.0,0.2144091]
[1741025423631,0.2429581,89886.0,89885.0,0.2145281]
[1741025423632,0.0204541,89886.0,89885.0,0.2145281]
[1741025424327,0.2429581,89886.0,89885.0,0.2145281]
[1741025424527,0.5429581,89886.0,89885.0,0.2165281]
[1741025424708,0.522504,89886.0,89885.0,0.2165281]
[1741025424909,0.53704485,89886.0,89885.0,0.002119]
[1741025425132,0.522526,89877.0,89876.0,0.0001697]
[1741025425333,0.53706885,89876.0,89875.0,4e-07]
[1741025426153,0.55732449,89876.0,89875.0,4e-07]
[1741025427310,0.222558,89864.0,89846.0,0.2075707]
[1741025427548,0.222568,89860.0,89859.0,0.00011905]
[1741025428359,0.222568,89860.0,89859.0,5e-08]
[1741025428560,0.522568,89860.0,89859.0,5e-08]
[1741025429201,0.53710885,89860.0,89859.0,5e-08]
[1741025429434,0.3,89853.0,89832.0,0.2075707]
[1741025429561,0.004,89876.0,89843.0,0.09328901]
[1741025429757,0.0456,89904.0,89832.0,0.00011914]
[1741025429758,0.10272,89898.0,89862.0,0.09328901]
[1741025429959,0.10272,89898.0,89878.0,0.222523]
[1741025430158,0.222491,89892.0,89879.0,0.5403]
[1741025430375,0.222516,89881.0,89880.0,0.5403]
[1741025430578,0.222516,89881.0,89869.0,0.0827]
[1741025430579,0.222543,89870.0,89869.0,0.0827]
[1741025430790,0.222553,89866.0,89863.0,0.2075707]
[1741025430994,0.222527,89877.0,89865.0,0.222555]
[1741025431196,0.00194736,89876.0,89859.0,0.0468]
[1741025431492,0.222575,89857.0,89856.0,0.2075707]
[1741025431630,0.222575,89857.0,89842.0,0.17288901]
[1741025431631,0.10312,89866.0,89842.0,0.0796]
[1741025431979,0.22261,89843.0,89842.0,0.0796]
[1741025432313,0.22262,89839.0,89832.0,0.2075707]
[1741025432566,0.00722087,89838.0,89832.0,0.2075707]
[1741025432797,0.00527268,89838.0,89832.0,0.20768984]
[1741025432996,0.222635,89833.0,89832.0,0.20768984]
[1741025433356,0.19839927,89833.0,89832.0,0.00011914]
[1741025433858,0.50034771,89833.0,89832.0,0.00011914]
[1741025434064,0.51294012,89833.0,89832.0,0.00011914]
[1741025434353,0.53717785,89832.0,89831.0,1.4e-07]
[1741025434698,0.54294808,89832.0,89831.0,1.4e-07]
[1741025435140,0.52840723,89832.0,89831.0,1.4e-07]
[1741025435974,0.00577023,89832.0,89831.0,1.4e-07]
[1741025436291,0.222637,89832.0,89831.0,1.4e-07]
[1741025436496,0.01743334,89832.0,89831.0,1.4e-07]
[1741025436879,0.22840723,89832.0,89831.0,1.4e-07]
[1741025437080,0.24006567,89832.0,89831.0,1.4e-07]
[1741025437279,0.24006567,89832.0,89826.0,0.0001697]
[1741025437280,0.01742867,89832.0,89822.0,0.18091084]
[1741025437482,0.01165844,89832.0,89828.0,0.222647]
[1741025437689,0.01165844,89832.0,89821.0,0.0001697]
[1741025437690,5.7e-07,89833.0,89832.0,0.31592601]
[1741025437888,0.0003406,89860.0,89859.0,0.44345901]
[1741025438212,0.0003406,89860.0,89859.0,1.16466985]
[1741025438213,0.00045963,89860.0,89859.0,1.16466985]
[1741025439001,0.22302763,89860.0,89859.0,0.84881084]
[1741025439224,0.00622986,89860.0,89859.0,0.30851084]
[1741025439637,0.00045963,89860.0,89859.0,0.53108084]
[1741025439912,0.22302763,89860.0,89859.0,0.30851084]
[1741025440240,0.22879786,89860.0,89859.0,0.30851084]
[1741025440441,0.22879786,89860.0,89859.0,0.62436985]
[1741025440442,0.00622986,89860.0,89859.0,0.62436985]
[1741025440798,0.00722986,89860.0,89859.0,1.16466985]
[1741025440968,0.00145963,89860.0,89859.0,1.16466985]
[1741025441169,0.00145963,89860.0,89859.0,0.94209985]
[1741025441313,0.00045963,89860.0,89859.0,0.94209985]
[1741025441754,0.00045963,89860.0,89859.0,0.84881084]
[1741025442291,0.22302763,89860.0,89859.0,0.84881084]
[1741025442427,0.00647257,89860.0,89859.0,0.30851084]
[1741025442671,0.00647257,89860.0,89859.0,0.53108084]
[1741025442882,0.00647257,89860.0,89859.0,0.30851084]
[1741025442883,0.22302763,89860.0,89859.0,0.30851084]
[1741025443084,0.22904057,89860.0,89859.0,0.30851084]
[1741025443278,0.00647257,89860.0,89859.0,0.30851084]
[1741025443503,0.23004057,89860.0,89859.0,0.30851084]
[1741025443665,0.23004057,89860.0,89859.0,0.18091084]
[1741025443871,0.22904057,89860.0,89859.0,0.18091084]
[1741025444309,0.23004057,89860.0,89859.0,0.18091084]
[1741025444524,0.00747257,89860.0,89859.0,0.18091084]
[1741025444700,0.00747257,89860.0,89859.0,0.40348084]
[1741025445041,0.00145963,89860.0,89859.0,0.40348084]
[1741025445342,0.00145963,89860.0,89859.0,0.49676985]
[1741025445343,0.00045963,89860.0,89859.0,0.49676985]
[1741025445857,0.00045963,89860.0,89859.0,1.03706985]
[1741025446207,0.00045963,89860.0,89859.0,0.72121084]
[1741025446208,0.22302763,89860.0,89859.0,0.72121084]
[1741025446412,0.22302763,89860.0,89859.0,0.18091084]
[1741025446622,0.00572691,89860.0,89859.0,0.18091084]
[1741025446778,0.22829491,89860.0,89859.0,0.18091084]
[1741025446981,0.00572691,89860.0,89859.0,0.18091084]
[1741025447464,0.00572691,89860.0,89859.0,0.18591084]
[1741025447596,0.23024254,89860.0,89859.0,0.005]
[1741025447983,0.222635,89833.0,89832.0,0.18091084]
[1741025448438,0.222635,89833.0,89804.0,0.18091084]
[1741025448439,0.222704,89805.0,89804.0,0.18091084]
[1741025448638,0.522707,89804.0,89781.0,0.0756]
[1741025448792,0.324984,89805.0,89781.0,0.0756]
[1741025448793,0.222727,89796.0,89781.0,0.0756]
[1741025448995,0.222727,89796.0,89781.0,0.298362]
[1741025449200,0.22781688,89796.0,89781.0,0.0756]
[1741025449426,0.22781688,89796.0,89795.0,0.00056721]
[1741025450019,0.00508988,89796.0,89795.0,0.00056721]
[1741025450222,0.222727,89796.0,89795.0,0.00056721]
[1741025450437,0.22767645,89796.0,89795.0,0.00056721]
[1741025450979,0.00494945,89796.0,89795.0,0.00056721]
[1741025451395,0.222722,89798.0,89795.0,0.00056721]
[1741025451578,0.22767645,89796.0,89795.0,0.00056721]
[1741025451813,0.22272,89799.0,89795.0,0.00056721]
[1741025452021,0.22767645,89796.0,89795.0,0.00056721]
[1741025452228,0.001,89796.0,89795.0,0.31658522]
[1741025452445,0.00667098,89796.0,89795.0,1.22458522]
[1741025452595,0.001,89796.0,89795.0,1.22458522]
[1741025452829,0.10224,89836.0,89830.0,0.222642]
[1741025453029,0.0055809,89835.0,89834.0,0.09328901]
[1741025453429,0.06128604,89861.0,89834.0,0.09328901]
[1741025453430,0.06128604,89861.0,89847.0,0.09328901]
[1741025453675,0.06128604,89861.0,89848.0,0.95508901]
[1741025453864,0.06128604,89861.0,89859.0,0.31585901]
[1741025454060,0.06128604,89861.0,89853.0,0.09328901]
[1741025454211,0.00045963,89860.0,89849.0,0.5403]
[1741025454412,0.222593,89850.0,89849.0,0.5403]
[1741025454733,0.00045963,89860.0,89849.0,0.5403]
[1741025454937,0.222593,89850.0,89849.0,0.5403]
[1741025456165,0.3,89856.0,89849.0,0.5403]
[1741025456367,0.00045963,89860.0,89849.0,0.5403]
[1741025456745,0.222593,89850.0,89849.0,0.5403]
[1741025457794,0.00045963,89860.0,89859.0,0.39115901]
[1741025458002,0.00045963,89860.0,89859.0,0.98055901]
[1741025458422,0.00045963,89860.0,89859.0,0.6647]
[1741025458708,0.00045963,89860.0,89859.0,0.75798901]
[1741025458869,0.22302763,89860.0,89859.0,0.6647]
[1741025459197,0.22302763,89860.0,89859.0,0.5403]
[1741025459403,0.22302763,89860.0,89845.0,0.298303]
[1741025459404,0.222603,89846.0,89845.0,0.0757]
[1741025459929,0.22871679,89846.0,89845.0,0.0757]
[1741025460132,0.222647,89828.0,89827.0,0.5403]
[1741025460339,0.222655,89825.0,89824.0,0.616]
[1741025460515,0.222689,89811.0,89810.0,0.63358901]
[1741025460726,0.222661,89823.0,89810.0,0.63358901]
[1741025460914,0.05,89881.0,89810.0,0.63358901]
[1741025460915,0.01166379,89825.0,89824.0,0.31594601]
[1741025461051,0.37702141,89850.0,89816.0,0.09328901]
[1741025461258,0.0116607,89828.0,89817.0,0.3215]
[1741025461465,0.37702141,89840.0,89817.0,0.3215]
[1741025461466,0.222652,89827.0,89817.0,0.3215]
[1741025461669,0.222672,89818.0,89817.0,0.3215]
[1741025461878,0.3,89818.0,89802.0,0.3215]
[1741025462100,0.222709,89803.0,89802.0,0.3215]
[1741025462436,0.0116579,89829.0,89810.0,0.222692]
[1741025462638,0.10168,89835.0,89823.0,0.09328901]
[1741025462871,0.222619,89840.0,89833.0,0.09328901]
[1741025463000,0.23427301,89842.0,89834.0,0.3215]
[1741025463197,0.22263,89835.0,89834.0,0.3215]
[1741025463650,0.222662,89822.0,89821.0,0.3215]
[1741025463826,0.3,89835.0,89806.0,0.09328901]
[1741025463827,0.222677,89817.0,89806.0,0.09328901]
[1741025464027,0.222707,89804.0,89802.0,0.0466]
[1741025464256,0.3,89819.0,89802.0,0.00039731]
[1741025464416,0.3,89819.0,89804.0,0.09328901]
[1741025464619,0.3,89819.0,89808.0,0.09328901]
[1741025464820,0.3,89819.0,89802.0,0.00039731]
[1741025464821,0.10168,89824.0,89814.0,0.09328901]
[1741025465113,0.007,89835.0,89825.0,0.222653]
[1741025465348,0.007,89835.0,89820.0,0.5403]
[1741025465349,0.222665,89821.0,89820.0,0.5403]
[1741025465541,0.007,89835.0,89820.0,0.5403]
[1741025465742,0.007,89835.0,89834.0,0.222632]
[1741025465951,0.007,89835.0,89834.0,0.31592101]
[1741025466147,0.007,89835.0,89834.0,0.85622101]
[1741025466374,0.0003406,89860.0,89857.0,0.31586401]
[1741025466634,0.0003406,89860.0,89857.0,0.85616401]
[1741025466764,0.0003406,89860.0,89857.0,0.93086401]
[1741025467161,0.0003406,89860.0,89859.0,0.22257]
[1741025467363,0.0003406,89860.0,89859.0,0.31385901]
[1741025467587,0.00045963,89860.0,89859.0,0.31385901]
[1741025468376,0.00145963,89860.0,89859.0,0.31385901]
[1741025469507,0.00145963,89860.0,89859.0,0.09128901]
[1741025469671,0.00145963,89860.0,89857.0,0.617]
[1741025469871,0.222573,89858.0,89857.0,0.5403]
[1741025470080,0.522573,89858.0,89817.0,0.0103]
[1741025470304,0.522573,89858.0,89662.0,0.223059]
[1741025470305,0.1,89770.0,89662.0,0.223059]
[1741025470475,0.04605496,89829.0,89711.0,1e-06]
[1741025470476,0.322935,89712.0,89711.0,1e-06]
[1741025470692,0.322945,89708.0,89660.0,0.045]
[1741025470881,0.710835,89708.0,89660.0,0.045]
[1741025471077,0.48789,89708.0,89668.0,0.01130986]
[1741025471453,0.48789,89708.0,89660.0,0.045]
[1741025471454,0.1,89703.0,89694.0,0.222978]
[1741025471837,0.334302,89740.0,89691.0,0.0779]
[1741025471838,0.1,89721.0,89691.0,0.0779]
[1741025471984,0.1,89706.0,89702.0,0.00239731]
[1741025472180,0.37702141,89740.0,89707.0,0.222948]
[1741025472181,0.1,89708.0,89707.0,0.222948]
[1741025472406,0.1,89714.0,89702.0,0.00239731]
[1741025472604,0.1,89724.0,89705.0,0.0496]
[1741025472858,0.0116595,89741.0,89706.0,0.0001702]
[1741025473099,0.1,89721.0,89706.0,0.0001702]
[1741025473232,0.1,89719.0,89711.0,0.222938]
[1741025473435,0.1,89730.0,89720.0,0.222913]
[1741025473676,0.1,89730.0,89723.0,0.222906]
[1741025473848,0.1,89720.0,89706.0,0.0001702]
[1741025474049,0.00579763,89742.0,89706.0,0.0001702]
[1741025474050,0.32293,89715.0,89706.0,0.0001702]
[1741025474387,0.131328,89714.0,89713.0,0.222933]
[1741025474615,0.1,89733.0,89708.0,0.334416]
[1741025474791,0.1,89733.0,89723.0,0.003]
[1741025474953,0.131328,89732.0,89728.0,0.222893]
[1741025475319,0.131328,89732.0,89726.0,0.222898]
[1741025475590,0.131328,89732.0,89731.0,0.222888]
[1741025475798,0.00579763,89742.0,89713.0,0.007]
[1741025475968,0.1,89765.0,89742.0,0.0815]
[1741025476173,0.09815231,89780.0,89753.0,0.0484]
[1741025476705,0.09815231,89780.0,89775.0,0.222777]
[1741025477013,0.09815231,89780.0,89779.0,0.222269]
[1741025477364,0.09815231,89775.0,89744.0,0.1]
[1741025477570,0.09815231,89775.0,89774.0,0.222781]
[1741025478468,0.001,89780.0,89771.0,0.222787]
[1741025478469,3.1e-07,89780.0,89771.0,0.222787]
[1741025478694,0.1035,89806.0,89805.0,0.222704]
[1741025478871,0.0035,89806.0,89803.0,0.222708]
[1741025479073,0.0035,89806.0,89805.0,0.222704]
[1741025480077,0.0035,89806.0,89805.0,0.22210131]
[1741025480365,0.326202,89806.0,89805.0,0.00039731]
[1741025480500,0.0035,89806.0,89805.0,0.22310131]
[1741025480905,0.0045,89806.0,89805.0,0.23010131]
[1741025481328,0.0035,89806.0,89805.0,0.00039731]
[1741025481559,0.0035,89806.0,89805.0,0.22410131]
[1741025482116,0.0035,89806.0,89805.0,0.00139731]
[1741025482317,0.1035,89806.0,89805.0,0.00139731]
[1741025482463,0.0035,89806.0,89805.0,0.00139731]
[1741025482875,0.0035,89806.0,89805.0,0.22410131]
[1741025483533,0.0035,89806.0,89805.0,0.22310131]
[1741025483730,0.0035,89806.0,89805.0,0.00039731]
[1741025483929,0.0045,89806.0,89805.0,0.00739731]
[1741025484087,0.0045,89806.0,89805.0,0.23010131]
[1741025484503,0.0035,89806.0,89805.0,0.22310131]
[1741025484701,0.0035,89806.0,89805.0,0.23010131]
[1741025484702,0.0045,89806.0,89805.0,0.23010131]
[1741025484885,1e-06,89814.0,89805.0,0.23010131]
[1741025485084,0.00100825,89838.0,89837.0,0.222625]
[1741025486845,2.5e-07,89839.0,89838.0,0.222622]
[1741025487071,2.5e-07,89839.0,89838.0,0.267922]
[1741025487358,0.0003406,89860.0,89859.0,0.22257]
[1741025487527,6.3e-07,89860.0,89859.0,0.22257]
[1741025487742,6.3e-07,89860.0,89859.0,0.52257]
[1741025487984,6.3e-07,89860.0,89859.0,0.22157]
[1741025488735,0.00100063,89860.0,89859.0,0.007]
[1741025488936,0.00100063,89860.0,89859.0,0.22957]
[1741025489554,0.00100063,89860.0,89859.0,0.007]
[1741025489701,0.00100063,89860.0,89859.0,0.22957]
[1741025490120,6.3e-07,89860.0,89859.0,0.22257]
[1741025490692,0.00100063,89860.0,89859.0,0.22957]
[1741025491053,6.3e-07,89860.0,89859.0,0.22257]
[1741025491247,6.3e-07,89860.0,89859.0,0.54407]
[1741025491859,6.3e-07,89860.0,89859.0,0.55107]
[1741025492220,0.0004,89879.0,89860.0,0.3]
[1741025492421,0.0004,89879.0,89859.0,0.9688]
[1741025492422,0.0004,89879.0,89878.0,0.222523]
[1741025492627,0.0004,89879.0,89878.0,0.544023]
[1741025493442,0.0003404,89896.0,89878.0,0.4465]
[1741025493645,0.00045943,89896.0,89895.0,0.222481]
[1741025494039,0.00045943,89896.0,89895.0,0.542981]
[1741025494701,0.00045943,89896.0,89895.0,0.541981]
[1741025495344,0.00045943,89896.0,89895.0,0.221481]
[1741025495898,0.00045943,89896.0,89880.0,0.3205]
[1741025496100,0.00045943,89896.0,89886.0,0.222503]
[1741025496309,0.00045943,89896.0,89895.0,0.007]
[1741025496310,0.00145943,89896.0,89895.0,0.007]
[1741025496503,0.00145943,89896.0,89895.0,0.229481]
[1741025496686,0.10145943,89896.0,89895.0,0.007]
[1741025496891,0.1,89882.0,89861.0,0.0782]
[1741025497093,0.222539,89872.0,89861.0,0.0782]
[1741025497291,0.222555,89866.0,89861.0,0.0782]
[1741025497718,0.00145943,89896.0,89861.0,0.0782]
[1741025497719,0.1,89891.0,89861.0,0.0782]
[1741025497988,0.1,89892.0,89882.0,0.222511]
[1741025498240,0.001,89882.0,89877.0,0.222526]
[1741025498475,0.001,89882.0,89879.0,0.222519]
[1741025498709,0.001,89882.0,89861.0,0.3987]
[1741025499169,0.1,89876.0,89861.0,0.0782]
[1741025499399,0.1,89875.0,89861.0,0.0782]
[1741025499650,0.1,89884.0,89861.0,0.0832]
[1741025499885,0.000119,89889.0,89861.0,0.0832]
[1741025500132,0.000119,89889.0,89862.0,0.3205]
[1741025500372,0.000119,89889.0,89863.0,0.333841]
[1741025500597,0.000119,89889.0,89872.0,0.222537]
[1741025500835,0.000119,89889.0,89876.0,0.222526]
[1741025501313,0.001119,89889.0,89880.0,0.222517]
[1741025501557,0.001119,89889.0,89888.0,0.222499]
[1741025502496,0.000119,89889.0,89863.0,0.3205]
[1741025502829,0.000119,89889.0,89882.0,0.222512]
[1741025502998,0.000119,89889.0,89879.0,0.222519]
[1741025503176,0.000119,89889.0,89888.0,0.222499]
[1741025503552,0.001119,89889.0,89884.0,0.222507]
[1741025503756,0.001119,89889.0,89864.0,0.3205]
[1741025503956,0.001119,89889.0,89868.0,0.222548]
[1741025504200,0.1,89887.0,89864.0,0.3205]
[1741025504575,0.001119,89889.0,89864.0,0.3205]
[1741025504790,0.001119,89889.0,89888.0,0.222499]
[1741025505389,0.001119,89889.0,89887.0,0.222499]
[1741025505590,0.001119,89889.0,89865.0,0.3]
[1741025505759,0.001119,89889.0,89861.0,0.1782]
[1741025505760,0.000119,89889.0,89888.0,0.222499]
[1741025505954,0.000119,89889.0,89888.0,0.221499]
[1741025506779,0.001119,89889.0,89888.0,0.594099]
[1741025507016,0.001119,89889.0,89888.0,0.674199]
[1741025507241,0.0003404,89896.0,89895.0,0.222481]
[1741025507401,4e-07,89896.0,89895.0,1.383281]
[1741025507555,0.0003406,89912.0,89911.0,0.222442]
[1741025507757,0.09064468,89941.0,89940.0,0.22237]
[1741025507962,0.09064468,89941.0,89940.0,0.53356476]
[1741025507963,6.8e-07,89941.0,89940.0,0.53356476]
[1741025508193,2.8e-07,89941.0,89940.0,1.15076476]
[1741025508423,2.8e-07,89941.0,89940.0,1.47126476]
[1741025508684,2.8e-07,89950.0,89949.0,0.222348]
[1741025508837,2.8e-07,89950.0,89940.0,0.9377]
[1741025509031,0.00011926,89950.0,89940.0,0.9377]
[1741025509238,0.00011926,89950.0,89940.0,0.3974]
[1741025509803,0.00011926,89950.0,89940.0,0.3195]
[1741025510671,0.1,89943.0,89940.0,0.007]
[1741025510888,0.322367,89941.0,89940.0,0.007]
[1741025511077,0.2225,89888.0,89884.0,0.0811]
[1741025511277,0.222506,89885.0,89884.0,0.0811]
[1741025511479,0.1,89894.0,89866.0,0.0811]
[1741025511686,0.1,89910.0,89867.0,0.445102]
[1741025511889,0.222473,89899.0,89886.0,0.222501]
[1741025512227,0.11176,89928.0,89867.0,0.445102]
[1741025512228,0.1,89907.0,89888.0,0.2226672]
[1741025512427,0.222483,89895.0,89888.0,0.0001702]
[1741025512554,0.1,89915.0,89897.0,0.222475]
[1741025512753,0.1,89915.0,89888.0,0.0001702]
[1741025512998,0.1,89915.0,89897.0,0.222474]
[1741025513176,0.222471,89900.0,89888.0,0.0001702]
[1741025513375,0.48866141,89930.0,89888.0,0.0001702]
[1741025513376,0.1,89901.0,89888.0,0.0001702]
[1741025513626,0.222481,89896.0,89888.0,0.0001702]
[1741025513786,0.1,89910.0,89888.0,0.0001702]
[1741025513971,0.37702141,89920.0,89888.0,0.0005668]
[1741025513972,0.322448,89909.0,89888.0,0.0005668]
[1741025514166,0.1,89909.0,89897.0,0.001]
[1741025514370,0.222474,89898.0,89897.0,0.001]
[1741025514572,0.1,89901.0,89888.0,0.0005668]
[1741025514801,0.1,89914.0,89888.0,0.0005668]
[1741025514975,0.48866141,89930.0,89888.0,0.0005668]
[1741025514976,0.1,89906.0,89888.0,0.0005668]
[1741025515341,0.222489,89892.0,89888.0,0.0005668]
[1741025515633,0.222496,89889.0,89888.0,0.0005668]
[1741025515823,0.322496,89889.0,89888.0,0.0025668]
[1741025516246,0.37702141,89900.0,89888.0,0.0025668]
[1741025516247,0.1,89898.0,89888.0,0.0025668]
[1741025516523,0.1,89907.0,89888.0,0.0005668]
[1741025516680,0.001,89892.0,89891.0,0.222491]